{"text_format":"1","workbook":"xlsx","n_sheets":6,"sheets":["Wichtige Hinweise","Reisekostenabrechnung","Sonstige Kosten","Tagessätze","AP Auswahlwerte","Sonstige Kosten - Auswahl"],"not_rendered":{"charts":0,"images":2,"macros":1,"external_links":1,"defined_names":23,"comments":1,"pivot_tables":0},"unopened":[],"bounds":{"document_bytes":16777216,"sheet_cells":100000,"rows_first":2000,"rows_last":500,"rows_between":2000,"halvings":0,"cell_chars":16384,"cell_head_chars":4096},"cells_cut":0,"cells_raw":0,"read":"whole","date_system":"1900"}

{"sheet":"Wichtige Hinweise","index":0,"n_rows":52,"n_cols":2,"rows_kept":52,"cut":false,"hidden":false,"merged":[]}
["Hinweise zum Arbeiten mit der Muster-Reisekostenabrechnung"]
[]
[]
["1.","Für die Nutzung dieser Datei setzen wir Excel-Kenntnisse voraus, da u. U. an einigen Stellen Zellen eingefügt oder neu formatiert werden müssen, z. B. "]
[null,"wenn vorhandene  Zellen nicht ausreichen. Generell sind nur Zellen der in BLAUER SCHRIFT gekennzeichneten Spalten Eingabefelder."]
[]
["2.","Vor Nutzung der Reisekostenabrechnung sind in den Zeilen 1 bis 3 die Firmenbezeichnung, Abrechnungszeitraum und Name des Arbeitnehmers einzutragen. "]
[null,"Bitte benennen Sie in den Zeilen 5 und 6 unbedingt mittels der hinterlegten Drop-Down-Menüs Ihre innerbetrieblichen Regelungen zur Abrechnung der "]
[null,"Reisekosten bzw. Ihre Reisekosten-Richtlinien. "]
[]
["3.","In die Spalte F ist das Land einzugeben; bitte beachten Sie, dass wir ein Drop-Down-Menü zur Auswahl hinterlegt haben. Bei Besuch mehrerer Länder "]
[null,"an einem Tag ist der letzte Tätigkeitsort im Ausland maßgebend; bei Flügen Inland - Ausland zählt die Flugzeit zur Auslandszeit."]
[null,"Es werden die ab 1. Januar 2024 geltenden Pauschbeträge berücksichtigt."]
[null,"Für nicht erfasste Länder ist der für Luxemburg geltende Pauschbetrag maßgebend, für nicht erfasste Übersee- und Außengebiete eines Landes"]
[null,"ist der für das Mutterland geltende Pauschbetrag maßgebend."]
[]
["4.","In der Spalte L sind die gefahrenen Kilometer (hin und zurück) einzutragen. Die Reisekosten errechnen sich automatisch in Spalte M unter Berücksichtigung "]
[null,"der derzeit gültigen Kilometerpauschale von 0,30 Euro."]
[]
["5.","In den Spalten N, O und P sind zwingend diejenigen Mahlzeiten zu erfassen, die durch den Arbeitgeber gewährt wurden (z.B. bei Seminarbuchungen,"]
[null,"Übernahme des Frühstücks auf Kosten des Arbeitgebers, Einladungen des Arbeitgebers an Geschäftsfreunde und eigene Mitarbeiter, nicht jedoch bei "]
[null,"Einladungen durch Geschäftspartner). Diese Angaben führen zu der gesetzlich vorgeschriebenen Kürzung der Tagespauschalen in den einschlägigen Fällen."]
[]
["6.","In den Spalten R bis U können Hotelrechnungen abgebildet werden; Spalte Q ergibt dann die Gesamt- bzw. Kontrollsumme. In Spalte U sollen diejenigen"]
[null,"Kosten eingetragen werden, die nicht vom Arbeitgeber übernommen werden; diese Angabe führt nicht zu einer Erstattung durch den Arbeitgeber."]
[]
["7.","Sonstige bei der Reise tatsächlich angefallenen Kosten sind in dem Tabellenblatt \"Sonstige Kosten\" zu erfassen; sie werden automatisch in den "]
[null,"Abrechnungsteil der Reisekostenabrechnung übernommen."]
[]
["8.","Im unteren Teil links finden Sie den Abrechnungsteil der Reisekostenabrechnung. Dort sind der Name des Prüfenden und ggf. geleistete Vorschüsse "]
[null,"anzugeben (ebenfalls blau gekennzeichnet)."]
[]
["9.","Im unteren Teil rechts finden Sie den Auszahlungsteil der Reisekostenabrechnung. Geben Sie dort das Erstellungsdatum der Reisekostenabrechnung an. "]
[null,"Im Fall der Arbeitgebererstattung kreuzen Sie bitte die Art der Auszahlung an. Die Abrechnung ist abschließend vom Mitarbeiter und vom Arbeitgeber an "]
[null,"den vorgesehenen Stellen zu datieren und zu unterzeichnen."]
[]
["10.","Es handelt sich hierbei nur um einen Vorschlag für eine Reisekostenabrechnung. Selbstverständlich können Sie gewünschte Änderungen und Anpassungen "]
[null,"vornehmen. Gerne nehmen wir auch Ihre Verbesserungsvorschläge und Anregungen entgegen."]
[]
["11.","Die Nutzung dieses Formblatts erfolgt auf eigenes Risiko des Nutzers. Für die Korrektheit der Formeln und Berechnungen wird keine Haftung übernommen, "]
[null,"insbesondere vor dem Hintergrund der jeder Zeit möglichen, vollumfänglichen Abänderung durch den Nutzer."]
[]
["12.","Eine berufliche Auswärtstätigkeit liegt ab dem 1.1.2014 nur außerhalb der ersten Tätigkeitsstätte vor. Jeder Arbeitnehmer kann maximal eine erste"]
[null,"Tätigkeitsstätte haben, für die die Kriterien einer ortsfesten betrieblichen Einrichtung und der dauerhaften Zuordnung zu diesem Ort erfüllt sein müssen."]
[]
[null,"Bitte beachten Sie, dass auch der dauerhafte Einsatz beim Kunden oder sonstigen Dritten zu einer ersten Tätigkeitsstätte führen kann."]
[]
[null,"Für Fragen zur Einordnung der ersten Tätigkeitsstätte bzw. zu Gestaltungsmöglichkeiten des Arbeitgebers im Rahmen seines Direktionsrechtes "]
[null,"nehmen Sie gerne Rücksprache mit uns auf."]
[]
[]
["Ein Service Ihrer VTP Vesper Tielkes Partners Steuerberatungsgesellschaft"]

{"sheet":"Reisekostenabrechnung","index":1,"n_rows":53,"n_cols":26,"rows_kept":53,"cut":false,"hidden":false,"merged":[[52,0,52,3],[7,6,7,7],[9,5,10,5],[7,10,9,10],[8,7,9,7],[39,0,39,6],[51,0,51,3],[50,0,50,1],[48,2,48,5],[8,4,9,4],[7,0,7,4],[0,0,0,24],[2,0,2,24],[1,0,1,24],[4,6,4,7],[4,0,4,5],[4,13,4,18],[4,19,4,24],[9,25,10,25],[10,23,10,24],[8,18,10,18],[8,16,10,16],[7,8,8,9],[9,8,10,8],[9,9,10,9],[7,16,7,20],[7,13,9,15],[8,19,10,19],[8,17,10,17],[8,20,10,20],[8,21,10,21],[8,22,10,22],[5,19,5,23],[5,13,5,18],[7,23,9,24],[47,2,47,5],[49,21,50,24],[40,21,40,24],[42,21,42,24],[43,21,43,24],[44,21,46,24],[47,21,48,24],[41,21,41,24],[39,21,39,24],[45,14,46,14],[44,19,46,20],[47,19,48,20],[49,19,50,20]]}
["Firmennamen und Anschrift eingeben"]
["Reisekostenabrechnung MM / 2024"]
["Arbeitnehmer: Name eingeben"]
[]
["Sollen Verpflegungspauschalen an den Arbeitnehmer gezahlt werden?",null,null,null,null,null,"JA",null,null,null,null,null,null,"Werden Kosten für veranlasste Mahlzeiten erstattet?  ",null,null,null,null,null,"BITTE AUSWÄHLEN"]
[null,null,null,null,null,null,null,null,null,null,null,null,null,"Wie erfolgt Versteuerung steuerpflichtiger Mahlzeiten?",null,null,null,null,null,"BITTE AUSWÄHLEN"]
[]
["Daten in jeder Spalte einzutragen (auch bei 1-tägiger Reise)",null,null,null,null,"Reiseziel","Verpflegungssatz",null,"Abwesenheit\n(nur für Berechnungszwecke)",null,"Verpfle-\ngungspau-\nschale","Gefahrene","Kilometer","Vom Arbeitgeber veranlasste Mahlzeiten: \nAnzahl bitte eintragen!\n",null,null,"Hotel-/Veranstaltungsrechnung",null,null,null,null,null,null,"Erstattung pauschaler Übernachtungs-\nkosten?\n"]
["Datum","Uhrzeit","Datum","Uhrzeit","Über-nachtung",null,null,"An-/Abreisetag\nund > 8 Std.",null,null,null,"Kilometer","pauschale",null,null,null,"Gesamt-\nbetrag\n(brutto)","Übernach-\ntungs-\nkosten","Rngs.-\nanteil f. Mahlzeiten\n/ pauschal, wenn inkl.","Sonstige \nHotel-\nkosten ","Private Kosten (nicht vom Arbeitgeber erstattbar)","Mahlzeiten \nKürzungs-\nbetrag VMA \n","Mahlzeiten \nVersteuerungsbetrag \nSachbezug\n"]
["Beginn","Beginn","Ende","Ende",null,"Land (eventuell auch Stadt)","ab 24 Std.",null,"Anzahl Tage\n> 24 Std.","Anzahl 8-24 Std.",null,null,"Kfz",null,null,null,null,null,null,null,null,null,null,null,null,"Anzahl Über-\nnachtungen"]
["TT.MM.JJ","hh,mm","TT.MM.JJ","hh,mm","JA / NEIN",null,"€","€",null,null,"€",null,{"$f":"IF($M$10='AP Auswahlwerte'!$A$12,'AP Auswahlwerte'!$B$12,IF(M10='AP Auswahlwerte'!$A$13,'AP Auswahlwerte'!$B$13,0))","v":0.3},"Früh-stück","Mittag-essen","Abend-essen",null,null,null,null,null,null,null,"JA / NEIN \n"]
[null,null,null,null,null,"Deutschland",{"$f":"VLOOKUP(F12,Tagessätze!A$4:D$237,2,FALSE)","v":28},{"$f":"VLOOKUP(F12,Tagessätze!A$4:D$237,3,FALSE)","v":14},{"$f":"IF(C12-A12>1,C12-A12-1,0)","v":0},{"$f":"IF(A12=\"\",0,IF(C12=A12,IF(D12-B12>8,1,0),IF(E12=\"JA\",2,IF(24-B12+D12>8,1,0))))","v":0},{"$f":"IF(A12=\"\",\"\",IF($G$5=\"BITTE AUSWÄHLEN\",\"Wahl fehlt\",IF($G$5=\"JA\",(G12*I12+H12*J12),0)))","v":""},null,{"$f":"L12*$M$11","v":0},null,null,null,{"$f":"SUM(R12:U12)","v":0},null,null,null,null,{"$f":"IF(A12=\"\",\"\",IF(Reisekostenabrechnung!$T$5=JA,\"Auswahl fehlt\",IF($T$5='AP Auswahlwerte'!$I$3,MIN(K12,(Reisekostenabrechnung!N12*0.2*Reisekostenabrechnung!$G12+Reisekostenabrechnung!O12*0.4*Reisekostenabrechnung!$G12+0.4*Reisekostenabrechnung!$G12*Reisekostenabrechnung!P12)),IF(S12='AP Auswahlwerte'!$P$2,IF(K12>0,MIN(K12,Reisekostenabrechnung!G12*(0.2*Reisekostenabrechnung!N12+0.4*Reisekostenabrechnung!O12+0.4*Reisekostenabrechnung!P12)),0),0))))","v":""},{"$f":"IF(A12=\"\",\"\",IF(K12=0,IF($T$5='AP Auswahlwerte'!$I$2,IF(S12<>\"PAUSCHAL\",0,(N12*'AP Auswahlwerte'!$D$3+'AP Auswahlwerte'!$D$4*Reisekostenabrechnung!O12+Reisekostenabrechnung!P12*'AP Auswahlwerte'!$D$5)),IF($T$5='AP Auswahlwerte'!$I$3,(N12*'AP Auswahlwerte'!$D$3+'AP Auswahlwerte'!$D$4*Reisekostenabrechnung!O12+Reisekostenabrechnung!P12*'AP Auswahlwerte'!$D$5),\"Auswahl fehlt\")),0))","v":""},{"$f":"IF(A12=C12,'AP Auswahlwerte'!$A$4,IF(R12>0,'AP Auswahlwerte'!$A$3,'AP Auswahlwerte'!$A$1))","v":"-"},{"$f":"(IF(C12-A12=0,0,IF(C12=\"\",0,IF(R12=0,IF(X12='AP Auswahlwerte'!$A$2,VLOOKUP(F12,Tagessätze!A$4:N$229,4,FALSE),0))*Z12)))","v":0},{"$f":"C12-A12","v":0}]
[null,null,null,null,null,"Deutschland",{"$f":"VLOOKUP(F13,Tagessätze!A$4:D$237,2,FALSE)","v":28},{"$f":"VLOOKUP(F13,Tagessätze!A$4:D$237,3,FALSE)","v":14},{"$f":"IF(C13-A13>1,C13-A13-1,0)","v":0},{"$f":"IF(A13=\"\",0,IF(C13=A13,IF(D13-B13>8,1,0),IF(E13=\"JA\",2,IF(24-B13+D13>8,1,0))))","v":0},"",null,0,null,null,null,0,null,null,null,null,{"$f":"IF(A13=\"\",\"\",IF(Reisekostenabrechnung!$T$5=JA,\"Auswahl fehlt\",IF($T$5='AP Auswahlwerte'!$I$3,MIN(K13,(Reisekostenabrechnung!N13*0.2*Reisekostenabrechnung!$G13+Reisekostenabrechnung!O13*0.4*Reisekostenabrechnung!$G13+0.4*Reisekostenabrechnung!$G13*Reisekostenabrechnung!P13)),IF(S13='AP Auswahlwerte'!$P$2,IF(K13>0,MIN(K13,Reisekostenabrechnung!G13*(0.2*Reisekostenabrechnung!N13+0.4*Reisekostenabrechnung!O13+0.4*Reisekostenabrechnung!P13)),0),0))))","v":""},{"$f":"IF(A13=\"\",\"\",IF(K13=0,IF($T$5='AP Auswahlwerte'!$I$2,IF(S13<>\"PAUSCHAL\",0,(N13*'AP Auswahlwerte'!$D$3+'AP Auswahlwerte'!$D$4*Reisekostenabrechnung!O13+Reisekostenabrechnung!P13*'AP Auswahlwerte'!$D$5)),IF($T$5='AP Auswahlwerte'!$I$3,(N13*'AP Auswahlwerte'!$D$3+'AP Auswahlwerte'!$D$4*Reisekostenabrechnung!O13+Reisekostenabrechnung!P13*'AP Auswahlwerte'!$D$5),\"Auswahl fehlt\")),0))","v":""},"-",{"$f":"(IF(C13-A13=0,0,IF(C13=\"\",0,IF(R13=0,IF(X13='AP Auswahlwerte'!$A$2,VLOOKUP(F13,Tagessätze!A$4:N$229,4,FALSE),0))*Z13)))","v":0},0]
[null,null,null,null,null,"Deutschland",{"$f":"VLOOKUP(F14,Tagessätze!A$4:D$237,2,FALSE)","v":28},{"$f":"VLOOKUP(F14,Tagessätze!A$4:D$237,3,FALSE)","v":14},0,0,"",null,0,null,null,null,0,null,null,null,null,{"$f":"IF(A14=\"\",\"\",IF(Reisekostenabrechnung!$T$5=JA,\"Auswahl fehlt\",IF($T$5='AP Auswahlwerte'!$I$3,MIN(K14,(Reisekostenabrechnung!N14*0.2*Reisekostenabrechnung!$G14+Reisekostenabrechnung!O14*0.4*Reisekostenabrechnung!$G14+0.4*Reisekostenabrechnung!$G14*Reisekostenabrechnung!P14)),IF(S14='AP Auswahlwerte'!$P$2,IF(K14>0,MIN(K14,Reisekostenabrechnung!G14*(0.2*Reisekostenabrechnung!N14+0.4*Reisekostenabrechnung!O14+0.4*Reisekostenabrechnung!P14)),0),0))))","v":""},{"$f":"IF(A14=\"\",\"\",IF(K14=0,IF($T$5='AP Auswahlwerte'!$I$2,IF(S14<>\"PAUSCHAL\",0,(N14*'AP Auswahlwerte'!$D$3+'AP Auswahlwerte'!$D$4*Reisekostenabrechnung!O14+Reisekostenabrechnung!P14*'AP Auswahlwerte'!$D$5)),IF($T$5='AP Auswahlwerte'!$I$3,(N14*'AP Auswahlwerte'!$D$3+'AP Auswahlwerte'!$D$4*Reisekostenabrechnung!O14+Reisekostenabrechnung!P14*'AP Auswahlwerte'!$D$5),\"Auswahl fehlt\")),0))","v":""},"-",{"$f":"(IF(C14-A14=0,0,IF(C14=\"\",0,IF(R14=0,IF(X14='AP Auswahlwerte'!$A$2,VLOOKUP(F14,Tagessätze!A$4:N$229,4,FALSE),0))*Z14)))","v":0},0]
[null,null,null,null,null,"Deutschland",{"$f":"VLOOKUP(F15,Tagessätze!A$4:D$237,2,FALSE)","v":28},{"$f":"VLOOKUP(F15,Tagessätze!A$4:D$237,3,FALSE)","v":14},0,0,"",null,0,null,null,null,0,null,null,null,null,{"$f":"IF(A15=\"\",\"\",IF(Reisekostenabrechnung!$T$5=JA,\"Auswahl fehlt\",IF($T$5='AP Auswahlwerte'!$I$3,MIN(K15,(Reisekostenabrechnung!N15*0.2*Reisekostenabrechnung!$G15+Reisekostenabrechnung!O15*0.4*Reisekostenabrechnung!$G15+0.4*Reisekostenabrechnung!$G15*Reisekostenabrechnung!P15)),IF(S15='AP Auswahlwerte'!$P$2,IF(K15>0,MIN(K15,Reisekostenabrechnung!G15*(0.2*Reisekostenabrechnung!N15+0.4*Reisekostenabrechnung!O15+0.4*Reisekostenabrechnung!P15)),0),0))))","v":""},{"$f":"IF(A15=\"\",\"\",IF(K15=0,IF($T$5='AP Auswahlwerte'!$I$2,IF(S15<>\"PAUSCHAL\",0,(N15*'AP Auswahlwerte'!$D$3+'AP Auswahlwerte'!$D$4*Reisekostenabrechnung!O15+Reisekostenabrechnung!P15*'AP Auswahlwerte'!$D$5)),IF($T$5='AP Auswahlwerte'!$I$3,(N15*'AP Auswahlwerte'!$D$3+'AP Auswahlwerte'!$D$4*Reisekostenabrechnung!O15+Reisekostenabrechnung!P15*'AP Auswahlwerte'!$D$5),\"Auswahl fehlt\")),0))","v":""},"-",{"$f":"(IF(C15-A15=0,0,IF(C15=\"\",0,IF(R15=0,IF(X15='AP Auswahlwerte'!$A$2,VLOOKUP(F15,Tagessätze!A$4:N$229,4,FALSE),0))*Z15)))","v":0},0]
[null,null,null,null,null,"Deutschland",{"$f":"VLOOKUP(F16,Tagessätze!A$4:D$237,2,FALSE)","v":28},{"$f":"VLOOKUP(F16,Tagessätze!A$4:D$237,3,FALSE)","v":14},0,0,"",null,0,null,null,null,0,null,null,null,null,{"$f":"IF(A16=\"\",\"\",IF(Reisekostenabrechnung!$T$5=JA,\"Auswahl fehlt\",IF($T$5='AP Auswahlwerte'!$I$3,MIN(K16,(Reisekostenabrechnung!N16*0.2*Reisekostenabrechnung!$G16+Reisekostenabrechnung!O16*0.4*Reisekostenabrechnung!$G16+0.4*Reisekostenabrechnung!$G16*Reisekostenabrechnung!P16)),IF(S16='AP Auswahlwerte'!$P$2,IF(K16>0,MIN(K16,Reisekostenabrechnung!G16*(0.2*Reisekostenabrechnung!N16+0.4*Reisekostenabrechnung!O16+0.4*Reisekostenabrechnung!P16)),0),0))))","v":""},{"$f":"IF(A16=\"\",\"\",IF(K16=0,IF($T$5='AP Auswahlwerte'!$I$2,IF(S16<>\"PAUSCHAL\",0,(N16*'AP Auswahlwerte'!$D$3+'AP Auswahlwerte'!$D$4*Reisekostenabrechnung!O16+Reisekostenabrechnung!P16*'AP Auswahlwerte'!$D$5)),IF($T$5='AP Auswahlwerte'!$I$3,(N16*'AP Auswahlwerte'!$D$3+'AP Auswahlwerte'!$D$4*Reisekostenabrechnung!O16+Reisekostenabrechnung!P16*'AP Auswahlwerte'!$D$5),\"Auswahl fehlt\")),0))","v":""},"-",{"$f":"(IF(C16-A16=0,0,IF(C16=\"\",0,IF(R16=0,IF(X16='AP Auswahlwerte'!$A$2,VLOOKUP(F16,Tagessätze!A$4:N$229,4,FALSE),0))*Z16)))","v":0},0]
[null,null,null,null,null,"Deutschland",{"$f":"VLOOKUP(F17,Tagessätze!A$4:D$237,2,FALSE)","v":28},{"$f":"VLOOKUP(F17,Tagessätze!A$4:D$237,3,FALSE)","v":14},0,0,"",null,0,null,null,null,0,null,null,null,null,{"$f":"IF(A17=\"\",\"\",IF(Reisekostenabrechnung!$T$5=JA,\"Auswahl fehlt\",IF($T$5='AP Auswahlwerte'!$I$3,MIN(K17,(Reisekostenabrechnung!N17*0.2*Reisekostenabrechnung!$G17+Reisekostenabrechnung!O17*0.4*Reisekostenabrechnung!$G17+0.4*Reisekostenabrechnung!$G17*Reisekostenabrechnung!P17)),IF(S17='AP Auswahlwerte'!$P$2,IF(K17>0,MIN(K17,Reisekostenabrechnung!G17*(0.2*Reisekostenabrechnung!N17+0.4*Reisekostenabrechnung!O17+0.4*Reisekostenabrechnung!P17)),0),0))))","v":""},{"$f":"IF(A17=\"\",\"\",IF(K17=0,IF($T$5='AP Auswahlwerte'!$I$2,IF(S17<>\"PAUSCHAL\",0,(N17*'AP Auswahlwerte'!$D$3+'AP Auswahlwerte'!$D$4*Reisekostenabrechnung!O17+Reisekostenabrechnung!P17*'AP Auswahlwerte'!$D$5)),IF($T$5='AP Auswahlwerte'!$I$3,(N17*'AP Auswahlwerte'!$D$3+'AP Auswahlwerte'!$D$4*Reisekostenabrechnung!O17+Reisekostenabrechnung!P17*'AP Auswahlwerte'!$D$5),\"Auswahl fehlt\")),0))","v":""},"-",{"$f":"(IF(C17-A17=0,0,IF(C17=\"\",0,IF(R17=0,IF(X17='AP Auswahlwerte'!$A$2,VLOOKUP(F17,Tagessätze!A$4:N$229,4,FALSE),0))*Z17)))","v":0},0]
[null,null,null,null,null,"Deutschland",{"$f":"VLOOKUP(F18,Tagessätze!A$4:D$237,2,FALSE)","v":28},{"$f":"VLOOKUP(F18,Tagessätze!A$4:D$237,3,FALSE)","v":14},0,0,"",null,0,null,null,null,0,null,null,null,null,{"$f":"IF(A18=\"\",\"\",IF(Reisekostenabrechnung!$T$5=JA,\"Auswahl fehlt\",IF($T$5='AP Auswahlwerte'!$I$3,MIN(K18,(Reisekostenabrechnung!N18*0.2*Reisekostenabrechnung!$G18+Reisekostenabrechnung!O18*0.4*Reisekostenabrechnung!$G18+0.4*Reisekostenabrechnung!$G18*Reisekostenabrechnung!P18)),IF(S18='AP Auswahlwerte'!$P$2,IF(K18>0,MIN(K18,Reisekostenabrechnung!G18*(0.2*Reisekostenabrechnung!N18+0.4*Reisekostenabrechnung!O18+0.4*Reisekostenabrechnung!P18)),0),0))))","v":""},{"$f":"IF(A18=\"\",\"\",IF(K18=0,IF($T$5='AP Auswahlwerte'!$I$2,IF(S18<>\"PAUSCHAL\",0,(N18*'AP Auswahlwerte'!$D$3+'AP Auswahlwerte'!$D$4*Reisekostenabrechnung!O18+Reisekostenabrechnung!P18*'AP Auswahlwerte'!$D$5)),IF($T$5='AP Auswahlwerte'!$I$3,(N18*'AP Auswahlwerte'!$D$3+'AP Auswahlwerte'!$D$4*Reisekostenabrechnung!O18+Reisekostenabrechnung!P18*'AP Auswahlwerte'!$D$5),\"Auswahl fehlt\")),0))","v":""},"-",{"$f":"(IF(C18-A18=0,0,IF(C18=\"\",0,IF(R18=0,IF(X18='AP Auswahlwerte'!$A$2,VLOOKUP(F18,Tagessätze!A$4:N$229,4,FALSE),0))*Z18)))","v":0},0]
[null,null,null,null,null,"Deutschland",{"$f":"VLOOKUP(F19,Tagessätze!A$4:D$237,2,FALSE)","v":28},{"$f":"VLOOKUP(F19,Tagessätze!A$4:D$237,3,FALSE)","v":14},0,0,"",null,0,null,null,null,{"$f":"SUM(R19:U19)","v":0},null,null,null,null,{"$f":"IF(A19=\"\",\"\",IF(Reisekostenabrechnung!$T$5=JA,\"Auswahl fehlt\",IF($T$5='AP Auswahlwerte'!$I$3,MIN(K19,(Reisekostenabrechnung!N19*0.2*Reisekostenabrechnung!$G19+Reisekostenabrechnung!O19*0.4*Reisekostenabrechnung!$G19+0.4*Reisekostenabrechnung!$G19*Reisekostenabrechnung!P19)),IF(S19='AP Auswahlwerte'!$P$2,IF(K19>0,MIN(K19,Reisekostenabrechnung!G19*(0.2*Reisekostenabrechnung!N19+0.4*Reisekostenabrechnung!O19+0.4*Reisekostenabrechnung!P19)),0),0))))","v":""},{"$f":"IF(A19=\"\",\"\",IF(K19=0,IF($T$5='AP Auswahlwerte'!$I$2,IF(S19<>\"PAUSCHAL\",0,(N19*'AP Auswahlwerte'!$D$3+'AP Auswahlwerte'!$D$4*Reisekostenabrechnung!O19+Reisekostenabrechnung!P19*'AP Auswahlwerte'!$D$5)),IF($T$5='AP Auswahlwerte'!$I$3,(N19*'AP Auswahlwerte'!$D$3+'AP Auswahlwerte'!$D$4*Reisekostenabrechnung!O19+Reisekostenabrechnung!P19*'AP Auswahlwerte'!$D$5),\"Auswahl fehlt\")),0))","v":""},"-",{"$f":"(IF(C19-A19=0,0,IF(C19=\"\",0,IF(R19=0,IF(X19='AP Auswahlwerte'!$A$2,VLOOKUP(F19,Tagessätze!A$4:N$229,4,FALSE),0))*Z19)))","v":0},0]
[null,null,null,null,null,"Deutschland",{"$f":"VLOOKUP(F20,Tagessätze!A$4:D$237,2,FALSE)","v":28},{"$f":"VLOOKUP(F20,Tagessätze!A$4:D$237,3,FALSE)","v":14},{"$f":"IF(C20-A20>1,C20-A20-1,0)","v":0},{"$f":"IF(A20=\"\",0,IF(C20=A20,IF(D20-B20>8,1,0),IF(E20=\"JA\",2,IF(24-B20+D20>8,1,0))))","v":0},{"$f":"IF(A20=\"\",\"\",IF($G$5=\"BITTE AUSWÄHLEN\",\"Wahl fehlt\",IF($G$5=\"JA\",(G20*I20+H20*J20),0)))","v":""},null,{"$f":"L20*$M$11","v":0},null,null,null,0,null,null,null,null,{"$f":"IF(A20=\"\",\"\",IF(Reisekostenabrechnung!$T$5=JA,\"Auswahl fehlt\",IF($T$5='AP Auswahlwerte'!$I$3,MIN(K20,(Reisekostenabrechnung!N20*0.2*Reisekostenabrechnung!$G20+Reisekostenabrechnung!O20*0.4*Reisekostenabrechnung!$G20+0.4*Reisekostenabrechnung!$G20*Reisekostenabrechnung!P20)),IF(S20='AP Auswahlwerte'!$P$2,IF(K20>0,MIN(K20,Reisekostenabrechnung!G20*(0.2*Reisekostenabrechnung!N20+0.4*Reisekostenabrechnung!O20+0.4*Reisekostenabrechnung!P20)),0),0))))","v":""},{"$f":"IF(A20=\"\",\"\",IF(K20=0,IF($T$5='AP Auswahlwerte'!$I$2,IF(S20<>\"PAUSCHAL\",0,(N20*'AP Auswahlwerte'!$D$3+'AP Auswahlwerte'!$D$4*Reisekostenabrechnung!O20+Reisekostenabrechnung!P20*'AP Auswahlwerte'!$D$5)),IF($T$5='AP Auswahlwerte'!$I$3,(N20*'AP Auswahlwerte'!$D$3+'AP Auswahlwerte'!$D$4*Reisekostenabrechnung!O20+Reisekostenabrechnung!P20*'AP Auswahlwerte'!$D$5),\"Auswahl fehlt\")),0))","v":""},"-",{"$f":"(IF(C20-A20=0,0,IF(C20=\"\",0,IF(R20=0,IF(X20='AP Auswahlwerte'!$A$2,VLOOKUP(F20,Tagessätze!A$4:N$229,4,FALSE),0))*Z20)))","v":0},0]
[null,null,null,null,null,"Deutschland",{"$f":"VLOOKUP(F21,Tagessätze!A$4:D$237,2,FALSE)","v":28},{"$f":"VLOOKUP(F21,Tagessätze!A$4:D$237,3,FALSE)","v":14},{"$f":"IF(C21-A21>1,C21-A21-1,0)","v":0},{"$f":"IF(A21=\"\",0,IF(C21=A21,IF(D21-B21>8,1,0),IF(E21=\"JA\",2,IF(24-B21+D21>8,1,0))))","v":0},"",null,0,null,null,null,{"$f":"SUM(R21:U21)","v":0},null,null,null,null,{"$f":"IF(A21=\"\",\"\",IF(Reisekostenabrechnung!$T$5=JA,\"Auswahl fehlt\",IF($T$5='AP Auswahlwerte'!$I$3,MIN(K21,(Reisekostenabrechnung!N21*0.2*Reisekostenabrechnung!$G21+Reisekostenabrechnung!O21*0.4*Reisekostenabrechnung!$G21+0.4*Reisekostenabrechnung!$G21*Reisekostenabrechnung!P21)),IF(S21='AP Auswahlwerte'!$P$2,IF(K21>0,MIN(K21,Reisekostenabrechnung!G21*(0.2*Reisekostenabrechnung!N21+0.4*Reisekostenabrechnung!O21+0.4*Reisekostenabrechnung!P21)),0),0))))","v":""},{"$f":"IF(A21=\"\",\"\",IF(K21=0,IF($T$5='AP Auswahlwerte'!$I$2,IF(S21<>\"PAUSCHAL\",0,(N21*'AP Auswahlwerte'!$D$3+'AP Auswahlwerte'!$D$4*Reisekostenabrechnung!O21+Reisekostenabrechnung!P21*'AP Auswahlwerte'!$D$5)),IF($T$5='AP Auswahlwerte'!$I$3,(N21*'AP Auswahlwerte'!$D$3+'AP Auswahlwerte'!$D$4*Reisekostenabrechnung!O21+Reisekostenabrechnung!P21*'AP Auswahlwerte'!$D$5),\"Auswahl fehlt\")),0))","v":""},"-",{"$f":"(IF(C21-A21=0,0,IF(C21=\"\",0,IF(R21=0,IF(X21='AP Auswahlwerte'!$A$2,VLOOKUP(F21,Tagessätze!A$4:N$229,4,FALSE),0))*Z21)))","v":0},0]
[null,null,null,null,null,"Deutschland",{"$f":"VLOOKUP(F22,Tagessätze!A$4:D$237,2,FALSE)","v":28},{"$f":"VLOOKUP(F22,Tagessätze!A$4:D$237,3,FALSE)","v":14},0,0,"",null,0,null,null,null,0,null,null,null,null,{"$f":"IF(A22=\"\",\"\",IF(Reisekostenabrechnung!$T$5=JA,\"Auswahl fehlt\",IF($T$5='AP Auswahlwerte'!$I$3,MIN(K22,(Reisekostenabrechnung!N22*0.2*Reisekostenabrechnung!$G22+Reisekostenabrechnung!O22*0.4*Reisekostenabrechnung!$G22+0.4*Reisekostenabrechnung!$G22*Reisekostenabrechnung!P22)),IF(S22='AP Auswahlwerte'!$P$2,IF(K22>0,MIN(K22,Reisekostenabrechnung!G22*(0.2*Reisekostenabrechnung!N22+0.4*Reisekostenabrechnung!O22+0.4*Reisekostenabrechnung!P22)),0),0))))","v":""},{"$f":"IF(A22=\"\",\"\",IF(K22=0,IF($T$5='AP Auswahlwerte'!$I$2,IF(S22<>\"PAUSCHAL\",0,(N22*'AP Auswahlwerte'!$D$3+'AP Auswahlwerte'!$D$4*Reisekostenabrechnung!O22+Reisekostenabrechnung!P22*'AP Auswahlwerte'!$D$5)),IF($T$5='AP Auswahlwerte'!$I$3,(N22*'AP Auswahlwerte'!$D$3+'AP Auswahlwerte'!$D$4*Reisekostenabrechnung!O22+Reisekostenabrechnung!P22*'AP Auswahlwerte'!$D$5),\"Auswahl fehlt\")),0))","v":""},"-",{"$f":"(IF(C22-A22=0,0,IF(C22=\"\",0,IF(R22=0,IF(X22='AP Auswahlwerte'!$A$2,VLOOKUP(F22,Tagessätze!A$4:N$229,4,FALSE),0))*Z22)))","v":0},0]
[null,null,null,null,null,"Deutschland",{"$f":"VLOOKUP(F23,Tagessätze!A$4:D$237,2,FALSE)","v":28},{"$f":"VLOOKUP(F23,Tagessätze!A$4:D$237,3,FALSE)","v":14},0,0,"",null,0,null,null,null,0,null,null,null,null,{"$f":"IF(A23=\"\",\"\",IF(Reisekostenabrechnung!$T$5=JA,\"Auswahl fehlt\",IF($T$5='AP Auswahlwerte'!$I$3,MIN(K23,(Reisekostenabrechnung!N23*0.2*Reisekostenabrechnung!$G23+Reisekostenabrechnung!O23*0.4*Reisekostenabrechnung!$G23+0.4*Reisekostenabrechnung!$G23*Reisekostenabrechnung!P23)),IF(S23='AP Auswahlwerte'!$P$2,IF(K23>0,MIN(K23,Reisekostenabrechnung!G23*(0.2*Reisekostenabrechnung!N23+0.4*Reisekostenabrechnung!O23+0.4*Reisekostenabrechnung!P23)),0),0))))","v":""},{"$f":"IF(A23=\"\",\"\",IF(K23=0,IF($T$5='AP Auswahlwerte'!$I$2,IF(S23<>\"PAUSCHAL\",0,(N23*'AP Auswahlwerte'!$D$3+'AP Auswahlwerte'!$D$4*Reisekostenabrechnung!O23+Reisekostenabrechnung!P23*'AP Auswahlwerte'!$D$5)),IF($T$5='AP Auswahlwerte'!$I$3,(N23*'AP Auswahlwerte'!$D$3+'AP Auswahlwerte'!$D$4*Reisekostenabrechnung!O23+Reisekostenabrechnung!P23*'AP Auswahlwerte'!$D$5),\"Auswahl fehlt\")),0))","v":""},"-",{"$f":"(IF(C23-A23=0,0,IF(C23=\"\",0,IF(R23=0,IF(X23='AP Auswahlwerte'!$A$2,VLOOKUP(F23,Tagessätze!A$4:N$229,4,FALSE),0))*Z23)))","v":0},0]
[null,null,null,null,null,"Deutschland",{"$f":"VLOOKUP(F24,Tagessätze!A$4:D$237,2,FALSE)","v":28},{"$f":"VLOOKUP(F24,Tagessätze!A$4:D$237,3,FALSE)","v":14},0,0,"",null,0,null,null,null,0,null,null,null,null,{"$f":"IF(A24=\"\",\"\",IF(Reisekostenabrechnung!$T$5=JA,\"Auswahl fehlt\",IF($T$5='AP Auswahlwerte'!$I$3,MIN(K24,(Reisekostenabrechnung!N24*0.2*Reisekostenabrechnung!$G24+Reisekostenabrechnung!O24*0.4*Reisekostenabrechnung!$G24+0.4*Reisekostenabrechnung!$G24*Reisekostenabrechnung!P24)),IF(S24='AP Auswahlwerte'!$P$2,IF(K24>0,MIN(K24,Reisekostenabrechnung!G24*(0.2*Reisekostenabrechnung!N24+0.4*Reisekostenabrechnung!O24+0.4*Reisekostenabrechnung!P24)),0),0))))","v":""},{"$f":"IF(A24=\"\",\"\",IF(K24=0,IF($T$5='AP Auswahlwerte'!$I$2,IF(S24<>\"PAUSCHAL\",0,(N24*'AP Auswahlwerte'!$D$3+'AP Auswahlwerte'!$D$4*Reisekostenabrechnung!O24+Reisekostenabrechnung!P24*'AP Auswahlwerte'!$D$5)),IF($T$5='AP Auswahlwerte'!$I$3,(N24*'AP Auswahlwerte'!$D$3+'AP Auswahlwerte'!$D$4*Reisekostenabrechnung!O24+Reisekostenabrechnung!P24*'AP Auswahlwerte'!$D$5),\"Auswahl fehlt\")),0))","v":""},"-",{"$f":"(IF(C24-A24=0,0,IF(C24=\"\",0,IF(R24=0,IF(X24='AP Auswahlwerte'!$A$2,VLOOKUP(F24,Tagessätze!A$4:N$229,4,FALSE),0))*Z24)))","v":0},0]
[null,null,null,null,null,"Deutschland",{"$f":"VLOOKUP(F25,Tagessätze!A$4:D$237,2,FALSE)","v":28},{"$f":"VLOOKUP(F25,Tagessätze!A$4:D$237,3,FALSE)","v":14},0,0,"",null,0,null,null,null,0,null,null,null,null,{"$f":"IF(A25=\"\",\"\",IF(Reisekostenabrechnung!$T$5=JA,\"Auswahl fehlt\",IF($T$5='AP Auswahlwerte'!$I$3,MIN(K25,(Reisekostenabrechnung!N25*0.2*Reisekostenabrechnung!$G25+Reisekostenabrechnung!O25*0.4*Reisekostenabrechnung!$G25+0.4*Reisekostenabrechnung!$G25*Reisekostenabrechnung!P25)),IF(S25='AP Auswahlwerte'!$P$2,IF(K25>0,MIN(K25,Reisekostenabrechnung!G25*(0.2*Reisekostenabrechnung!N25+0.4*Reisekostenabrechnung!O25+0.4*Reisekostenabrechnung!P25)),0),0))))","v":""},{"$f":"IF(A25=\"\",\"\",IF(K25=0,IF($T$5='AP Auswahlwerte'!$I$2,IF(S25<>\"PAUSCHAL\",0,(N25*'AP Auswahlwerte'!$D$3+'AP Auswahlwerte'!$D$4*Reisekostenabrechnung!O25+Reisekostenabrechnung!P25*'AP Auswahlwerte'!$D$5)),IF($T$5='AP Auswahlwerte'!$I$3,(N25*'AP Auswahlwerte'!$D$3+'AP Auswahlwerte'!$D$4*Reisekostenabrechnung!O25+Reisekostenabrechnung!P25*'AP Auswahlwerte'!$D$5),\"Auswahl fehlt\")),0))","v":""},"-",{"$f":"(IF(C25-A25=0,0,IF(C25=\"\",0,IF(R25=0,IF(X25='AP Auswahlwerte'!$A$2,VLOOKUP(F25,Tagessätze!A$4:N$229,4,FALSE),0))*Z25)))","v":0},0]
[null,null,null,null,null,"Deutschland",{"$f":"VLOOKUP(F26,Tagessätze!A$4:D$237,2,FALSE)","v":28},{"$f":"VLOOKUP(F26,Tagessätze!A$4:D$237,3,FALSE)","v":14},0,0,"",null,0,null,null,null,0,null,null,null,null,{"$f":"IF(A26=\"\",\"\",IF(Reisekostenabrechnung!$T$5=JA,\"Auswahl fehlt\",IF($T$5='AP Auswahlwerte'!$I$3,MIN(K26,(Reisekostenabrechnung!N26*0.2*Reisekostenabrechnung!$G26+Reisekostenabrechnung!O26*0.4*Reisekostenabrechnung!$G26+0.4*Reisekostenabrechnung!$G26*Reisekostenabrechnung!P26)),IF(S26='AP Auswahlwerte'!$P$2,IF(K26>0,MIN(K26,Reisekostenabrechnung!G26*(0.2*Reisekostenabrechnung!N26+0.4*Reisekostenabrechnung!O26+0.4*Reisekostenabrechnung!P26)),0),0))))","v":""},{"$f":"IF(A26=\"\",\"\",IF(K26=0,IF($T$5='AP Auswahlwerte'!$I$2,IF(S26<>\"PAUSCHAL\",0,(N26*'AP Auswahlwerte'!$D$3+'AP Auswahlwerte'!$D$4*Reisekostenabrechnung!O26+Reisekostenabrechnung!P26*'AP Auswahlwerte'!$D$5)),IF($T$5='AP Auswahlwerte'!$I$3,(N26*'AP Auswahlwerte'!$D$3+'AP Auswahlwerte'!$D$4*Reisekostenabrechnung!O26+Reisekostenabrechnung!P26*'AP Auswahlwerte'!$D$5),\"Auswahl fehlt\")),0))","v":""},"-",{"$f":"(IF(C26-A26=0,0,IF(C26=\"\",0,IF(R26=0,IF(X26='AP Auswahlwerte'!$A$2,VLOOKUP(F26,Tagessätze!A$4:N$229,4,FALSE),0))*Z26)))","v":0},0]
[null,null,null,null,null,"Deutschland",{"$f":"VLOOKUP(F27,Tagessätze!A$4:D$237,2,FALSE)","v":28},{"$f":"VLOOKUP(F27,Tagessätze!A$4:D$237,3,FALSE)","v":14},0,0,"",null,0,null,null,null,0,null,null,null,null,{"$f":"IF(A27=\"\",\"\",IF(Reisekostenabrechnung!$T$5=JA,\"Auswahl fehlt\",IF($T$5='AP Auswahlwerte'!$I$3,MIN(K27,(Reisekostenabrechnung!N27*0.2*Reisekostenabrechnung!$G27+Reisekostenabrechnung!O27*0.4*Reisekostenabrechnung!$G27+0.4*Reisekostenabrechnung!$G27*Reisekostenabrechnung!P27)),IF(S27='AP Auswahlwerte'!$P$2,IF(K27>0,MIN(K27,Reisekostenabrechnung!G27*(0.2*Reisekostenabrechnung!N27+0.4*Reisekostenabrechnung!O27+0.4*Reisekostenabrechnung!P27)),0),0))))","v":""},{"$f":"IF(A27=\"\",\"\",IF(K27=0,IF($T$5='AP Auswahlwerte'!$I$2,IF(S27<>\"PAUSCHAL\",0,(N27*'AP Auswahlwerte'!$D$3+'AP Auswahlwerte'!$D$4*Reisekostenabrechnung!O27+Reisekostenabrechnung!P27*'AP Auswahlwerte'!$D$5)),IF($T$5='AP Auswahlwerte'!$I$3,(N27*'AP Auswahlwerte'!$D$3+'AP Auswahlwerte'!$D$4*Reisekostenabrechnung!O27+Reisekostenabrechnung!P27*'AP Auswahlwerte'!$D$5),\"Auswahl fehlt\")),0))","v":""},"-",{"$f":"(IF(C27-A27=0,0,IF(C27=\"\",0,IF(R27=0,IF(X27='AP Auswahlwerte'!$A$2,VLOOKUP(F27,Tagessätze!A$4:N$229,4,FALSE),0))*Z27)))","v":0},0]
[null,null,null,null,null,"Deutschland",{"$f":"VLOOKUP(F28,Tagessätze!A$4:D$237,2,FALSE)","v":28},{"$f":"VLOOKUP(F28,Tagessätze!A$4:D$237,3,FALSE)","v":14},0,0,"",null,0,null,null,null,0,null,null,null,null,{"$f":"IF(A28=\"\",\"\",IF(Reisekostenabrechnung!$T$5=JA,\"Auswahl fehlt\",IF($T$5='AP Auswahlwerte'!$I$3,MIN(K28,(Reisekostenabrechnung!N28*0.2*Reisekostenabrechnung!$G28+Reisekostenabrechnung!O28*0.4*Reisekostenabrechnung!$G28+0.4*Reisekostenabrechnung!$G28*Reisekostenabrechnung!P28)),IF(S28='AP Auswahlwerte'!$P$2,IF(K28>0,MIN(K28,Reisekostenabrechnung!G28*(0.2*Reisekostenabrechnung!N28+0.4*Reisekostenabrechnung!O28+0.4*Reisekostenabrechnung!P28)),0),0))))","v":""},{"$f":"IF(A28=\"\",\"\",IF(K28=0,IF($T$5='AP Auswahlwerte'!$I$2,IF(S28<>\"PAUSCHAL\",0,(N28*'AP Auswahlwerte'!$D$3+'AP Auswahlwerte'!$D$4*Reisekostenabrechnung!O28+Reisekostenabrechnung!P28*'AP Auswahlwerte'!$D$5)),IF($T$5='AP Auswahlwerte'!$I$3,(N28*'AP Auswahlwerte'!$D$3+'AP Auswahlwerte'!$D$4*Reisekostenabrechnung!O28+Reisekostenabrechnung!P28*'AP Auswahlwerte'!$D$5),\"Auswahl fehlt\")),0))","v":""},"-",{"$f":"(IF(C28-A28=0,0,IF(C28=\"\",0,IF(R28=0,IF(X28='AP Auswahlwerte'!$A$2,VLOOKUP(F28,Tagessätze!A$4:N$229,4,FALSE),0))*Z28)))","v":0},0]
[null,null,null,null,null,"Deutschland",{"$f":"VLOOKUP(F29,Tagessätze!A$4:D$237,2,FALSE)","v":28},{"$f":"VLOOKUP(F29,Tagessätze!A$4:D$237,3,FALSE)","v":14},0,0,"",null,0,null,null,null,0,null,null,null,null,{"$f":"IF(A29=\"\",\"\",IF(Reisekostenabrechnung!$T$5=JA,\"Auswahl fehlt\",IF($T$5='AP Auswahlwerte'!$I$3,MIN(K29,(Reisekostenabrechnung!N29*0.2*Reisekostenabrechnung!$G29+Reisekostenabrechnung!O29*0.4*Reisekostenabrechnung!$G29+0.4*Reisekostenabrechnung!$G29*Reisekostenabrechnung!P29)),IF(S29='AP Auswahlwerte'!$P$2,IF(K29>0,MIN(K29,Reisekostenabrechnung!G29*(0.2*Reisekostenabrechnung!N29+0.4*Reisekostenabrechnung!O29+0.4*Reisekostenabrechnung!P29)),0),0))))","v":""},{"$f":"IF(A29=\"\",\"\",IF(K29=0,IF($T$5='AP Auswahlwerte'!$I$2,IF(S29<>\"PAUSCHAL\",0,(N29*'AP Auswahlwerte'!$D$3+'AP Auswahlwerte'!$D$4*Reisekostenabrechnung!O29+Reisekostenabrechnung!P29*'AP Auswahlwerte'!$D$5)),IF($T$5='AP Auswahlwerte'!$I$3,(N29*'AP Auswahlwerte'!$D$3+'AP Auswahlwerte'!$D$4*Reisekostenabrechnung!O29+Reisekostenabrechnung!P29*'AP Auswahlwerte'!$D$5),\"Auswahl fehlt\")),0))","v":""},"-",{"$f":"(IF(C29-A29=0,0,IF(C29=\"\",0,IF(R29=0,IF(X29='AP Auswahlwerte'!$A$2,VLOOKUP(F29,Tagessätze!A$4:N$229,4,FALSE),0))*Z29)))","v":0},0]
[null,null,null,null,null,"Deutschland",{"$f":"VLOOKUP(F30,Tagessätze!A$4:D$237,2,FALSE)","v":28},{"$f":"VLOOKUP(F30,Tagessätze!A$4:D$237,3,FALSE)","v":14},0,0,"",null,0,null,null,null,0,null,null,null,null,{"$f":"IF(A30=\"\",\"\",IF(Reisekostenabrechnung!$T$5=JA,\"Auswahl fehlt\",IF($T$5='AP Auswahlwerte'!$I$3,MIN(K30,(Reisekostenabrechnung!N30*0.2*Reisekostenabrechnung!$G30+Reisekostenabrechnung!O30*0.4*Reisekostenabrechnung!$G30+0.4*Reisekostenabrechnung!$G30*Reisekostenabrechnung!P30)),IF(S30='AP Auswahlwerte'!$P$2,IF(K30>0,MIN(K30,Reisekostenabrechnung!G30*(0.2*Reisekostenabrechnung!N30+0.4*Reisekostenabrechnung!O30+0.4*Reisekostenabrechnung!P30)),0),0))))","v":""},{"$f":"IF(A30=\"\",\"\",IF(K30=0,IF($T$5='AP Auswahlwerte'!$I$2,IF(S30<>\"PAUSCHAL\",0,(N30*'AP Auswahlwerte'!$D$3+'AP Auswahlwerte'!$D$4*Reisekostenabrechnung!O30+Reisekostenabrechnung!P30*'AP Auswahlwerte'!$D$5)),IF($T$5='AP Auswahlwerte'!$I$3,(N30*'AP Auswahlwerte'!$D$3+'AP Auswahlwerte'!$D$4*Reisekostenabrechnung!O30+Reisekostenabrechnung!P30*'AP Auswahlwerte'!$D$5),\"Auswahl fehlt\")),0))","v":""},"-",{"$f":"(IF(C30-A30=0,0,IF(C30=\"\",0,IF(R30=0,IF(X30='AP Auswahlwerte'!$A$2,VLOOKUP(F30,Tagessätze!A$4:N$229,4,FALSE),0))*Z30)))","v":0},0]
[null,null,null,null,null,"Deutschland",{"$f":"VLOOKUP(F31,Tagessätze!A$4:D$237,2,FALSE)","v":28},{"$f":"VLOOKUP(F31,Tagessätze!A$4:D$237,3,FALSE)","v":14},0,0,"",null,0,null,null,null,0,null,null,null,null,{"$f":"IF(A31=\"\",\"\",IF(Reisekostenabrechnung!$T$5=JA,\"Auswahl fehlt\",IF($T$5='AP Auswahlwerte'!$I$3,MIN(K31,(Reisekostenabrechnung!N31*0.2*Reisekostenabrechnung!$G31+Reisekostenabrechnung!O31*0.4*Reisekostenabrechnung!$G31+0.4*Reisekostenabrechnung!$G31*Reisekostenabrechnung!P31)),IF(S31='AP Auswahlwerte'!$P$2,IF(K31>0,MIN(K31,Reisekostenabrechnung!G31*(0.2*Reisekostenabrechnung!N31+0.4*Reisekostenabrechnung!O31+0.4*Reisekostenabrechnung!P31)),0),0))))","v":""},{"$f":"IF(A31=\"\",\"\",IF(K31=0,IF($T$5='AP Auswahlwerte'!$I$2,IF(S31<>\"PAUSCHAL\",0,(N31*'AP Auswahlwerte'!$D$3+'AP Auswahlwerte'!$D$4*Reisekostenabrechnung!O31+Reisekostenabrechnung!P31*'AP Auswahlwerte'!$D$5)),IF($T$5='AP Auswahlwerte'!$I$3,(N31*'AP Auswahlwerte'!$D$3+'AP Auswahlwerte'!$D$4*Reisekostenabrechnung!O31+Reisekostenabrechnung!P31*'AP Auswahlwerte'!$D$5),\"Auswahl fehlt\")),0))","v":""},"-",{"$f":"(IF(C31-A31=0,0,IF(C31=\"\",0,IF(R31=0,IF(X31='AP Auswahlwerte'!$A$2,VLOOKUP(F31,Tagessätze!A$4:N$229,4,FALSE),0))*Z31)))","v":0},0]
[null,null,null,null,null,"Deutschland",{"$f":"VLOOKUP(F32,Tagessätze!A$4:D$237,2,FALSE)","v":28},{"$f":"VLOOKUP(F32,Tagessätze!A$4:D$237,3,FALSE)","v":14},0,0,"",null,0,null,null,null,0,null,null,null,null,{"$f":"IF(A32=\"\",\"\",IF(Reisekostenabrechnung!$T$5=JA,\"Auswahl fehlt\",IF($T$5='AP Auswahlwerte'!$I$3,MIN(K32,(Reisekostenabrechnung!N32*0.2*Reisekostenabrechnung!$G32+Reisekostenabrechnung!O32*0.4*Reisekostenabrechnung!$G32+0.4*Reisekostenabrechnung!$G32*Reisekostenabrechnung!P32)),IF(S32='AP Auswahlwerte'!$P$2,IF(K32>0,MIN(K32,Reisekostenabrechnung!G32*(0.2*Reisekostenabrechnung!N32+0.4*Reisekostenabrechnung!O32+0.4*Reisekostenabrechnung!P32)),0),0))))","v":""},{"$f":"IF(A32=\"\",\"\",IF(K32=0,IF($T$5='AP Auswahlwerte'!$I$2,IF(S32<>\"PAUSCHAL\",0,(N32*'AP Auswahlwerte'!$D$3+'AP Auswahlwerte'!$D$4*Reisekostenabrechnung!O32+Reisekostenabrechnung!P32*'AP Auswahlwerte'!$D$5)),IF($T$5='AP Auswahlwerte'!$I$3,(N32*'AP Auswahlwerte'!$D$3+'AP Auswahlwerte'!$D$4*Reisekostenabrechnung!O32+Reisekostenabrechnung!P32*'AP Auswahlwerte'!$D$5),\"Auswahl fehlt\")),0))","v":""},"-",{"$f":"(IF(C32-A32=0,0,IF(C32=\"\",0,IF(R32=0,IF(X32='AP Auswahlwerte'!$A$2,VLOOKUP(F32,Tagessätze!A$4:N$229,4,FALSE),0))*Z32)))","v":0},0]
[null,null,null,null,null,"Deutschland",{"$f":"VLOOKUP(F33,Tagessätze!A$4:D$237,2,FALSE)","v":28},{"$f":"VLOOKUP(F33,Tagessätze!A$4:D$237,3,FALSE)","v":14},0,0,"",null,0,null,null,null,0,null,null,null,null,{"$f":"IF(A33=\"\",\"\",IF(Reisekostenabrechnung!$T$5=JA,\"Auswahl fehlt\",IF($T$5='AP Auswahlwerte'!$I$3,MIN(K33,(Reisekostenabrechnung!N33*0.2*Reisekostenabrechnung!$G33+Reisekostenabrechnung!O33*0.4*Reisekostenabrechnung!$G33+0.4*Reisekostenabrechnung!$G33*Reisekostenabrechnung!P33)),IF(S33='AP Auswahlwerte'!$P$2,IF(K33>0,MIN(K33,Reisekostenabrechnung!G33*(0.2*Reisekostenabrechnung!N33+0.4*Reisekostenabrechnung!O33+0.4*Reisekostenabrechnung!P33)),0),0))))","v":""},{"$f":"IF(A33=\"\",\"\",IF(K33=0,IF($T$5='AP Auswahlwerte'!$I$2,IF(S33<>\"PAUSCHAL\",0,(N33*'AP Auswahlwerte'!$D$3+'AP Auswahlwerte'!$D$4*Reisekostenabrechnung!O33+Reisekostenabrechnung!P33*'AP Auswahlwerte'!$D$5)),IF($T$5='AP Auswahlwerte'!$I$3,(N33*'AP Auswahlwerte'!$D$3+'AP Auswahlwerte'!$D$4*Reisekostenabrechnung!O33+Reisekostenabrechnung!P33*'AP Auswahlwerte'!$D$5),\"Auswahl fehlt\")),0))","v":""},"-",{"$f":"(IF(C33-A33=0,0,IF(C33=\"\",0,IF(R33=0,IF(X33='AP Auswahlwerte'!$A$2,VLOOKUP(F33,Tagessätze!A$4:N$229,4,FALSE),0))*Z33)))","v":0},0]
[null,null,null,null,null,"Deutschland",{"$f":"VLOOKUP(F34,Tagessätze!A$4:D$237,2,FALSE)","v":28},{"$f":"VLOOKUP(F34,Tagessätze!A$4:D$237,3,FALSE)","v":14},0,0,"",null,0,null,null,null,0,null,null,null,null,{"$f":"IF(A34=\"\",\"\",IF(Reisekostenabrechnung!$T$5=JA,\"Auswahl fehlt\",IF($T$5='AP Auswahlwerte'!$I$3,MIN(K34,(Reisekostenabrechnung!N34*0.2*Reisekostenabrechnung!$G34+Reisekostenabrechnung!O34*0.4*Reisekostenabrechnung!$G34+0.4*Reisekostenabrechnung!$G34*Reisekostenabrechnung!P34)),IF(S34='AP Auswahlwerte'!$P$2,IF(K34>0,MIN(K34,Reisekostenabrechnung!G34*(0.2*Reisekostenabrechnung!N34+0.4*Reisekostenabrechnung!O34+0.4*Reisekostenabrechnung!P34)),0),0))))","v":""},{"$f":"IF(A34=\"\",\"\",IF(K34=0,IF($T$5='AP Auswahlwerte'!$I$2,IF(S34<>\"PAUSCHAL\",0,(N34*'AP Auswahlwerte'!$D$3+'AP Auswahlwerte'!$D$4*Reisekostenabrechnung!O34+Reisekostenabrechnung!P34*'AP Auswahlwerte'!$D$5)),IF($T$5='AP Auswahlwerte'!$I$3,(N34*'AP Auswahlwerte'!$D$3+'AP Auswahlwerte'!$D$4*Reisekostenabrechnung!O34+Reisekostenabrechnung!P34*'AP Auswahlwerte'!$D$5),\"Auswahl fehlt\")),0))","v":""},"-",{"$f":"(IF(C34-A34=0,0,IF(C34=\"\",0,IF(R34=0,IF(X34='AP Auswahlwerte'!$A$2,VLOOKUP(F34,Tagessätze!A$4:N$229,4,FALSE),0))*Z34)))","v":0},0]
[null,null,null,null,null,"Deutschland",{"$f":"VLOOKUP(F35,Tagessätze!A$4:D$237,2,FALSE)","v":28},{"$f":"VLOOKUP(F35,Tagessätze!A$4:D$237,3,FALSE)","v":14},0,0,"",null,0,null,null,null,0,null,null,null,null,{"$f":"IF(A35=\"\",\"\",IF(Reisekostenabrechnung!$T$5=JA,\"Auswahl fehlt\",IF($T$5='AP Auswahlwerte'!$I$3,MIN(K35,(Reisekostenabrechnung!N35*0.2*Reisekostenabrechnung!$G35+Reisekostenabrechnung!O35*0.4*Reisekostenabrechnung!$G35+0.4*Reisekostenabrechnung!$G35*Reisekostenabrechnung!P35)),IF(S35='AP Auswahlwerte'!$P$2,IF(K35>0,MIN(K35,Reisekostenabrechnung!G35*(0.2*Reisekostenabrechnung!N35+0.4*Reisekostenabrechnung!O35+0.4*Reisekostenabrechnung!P35)),0),0))))","v":""},{"$f":"IF(A35=\"\",\"\",IF(K35=0,IF($T$5='AP Auswahlwerte'!$I$2,IF(S35<>\"PAUSCHAL\",0,(N35*'AP Auswahlwerte'!$D$3+'AP Auswahlwerte'!$D$4*Reisekostenabrechnung!O35+Reisekostenabrechnung!P35*'AP Auswahlwerte'!$D$5)),IF($T$5='AP Auswahlwerte'!$I$3,(N35*'AP Auswahlwerte'!$D$3+'AP Auswahlwerte'!$D$4*Reisekostenabrechnung!O35+Reisekostenabrechnung!P35*'AP Auswahlwerte'!$D$5),\"Auswahl fehlt\")),0))","v":""},"-",{"$f":"(IF(C35-A35=0,0,IF(C35=\"\",0,IF(R35=0,IF(X35='AP Auswahlwerte'!$A$2,VLOOKUP(F35,Tagessätze!A$4:N$229,4,FALSE),0))*Z35)))","v":0},0]
[null,null,null,null,null,"Deutschland",{"$f":"VLOOKUP(F36,Tagessätze!A$4:D$237,2,FALSE)","v":28},{"$f":"VLOOKUP(F36,Tagessätze!A$4:D$237,3,FALSE)","v":14},0,0,"",null,0,null,null,null,0,null,null,null,null,{"$f":"IF(A36=\"\",\"\",IF(Reisekostenabrechnung!$T$5=JA,\"Auswahl fehlt\",IF($T$5='AP Auswahlwerte'!$I$3,MIN(K36,(Reisekostenabrechnung!N36*0.2*Reisekostenabrechnung!$G36+Reisekostenabrechnung!O36*0.4*Reisekostenabrechnung!$G36+0.4*Reisekostenabrechnung!$G36*Reisekostenabrechnung!P36)),IF(S36='AP Auswahlwerte'!$P$2,IF(K36>0,MIN(K36,Reisekostenabrechnung!G36*(0.2*Reisekostenabrechnung!N36+0.4*Reisekostenabrechnung!O36+0.4*Reisekostenabrechnung!P36)),0),0))))","v":""},{"$f":"IF(A36=\"\",\"\",IF(K36=0,IF($T$5='AP Auswahlwerte'!$I$2,IF(S36<>\"PAUSCHAL\",0,(N36*'AP Auswahlwerte'!$D$3+'AP Auswahlwerte'!$D$4*Reisekostenabrechnung!O36+Reisekostenabrechnung!P36*'AP Auswahlwerte'!$D$5)),IF($T$5='AP Auswahlwerte'!$I$3,(N36*'AP Auswahlwerte'!$D$3+'AP Auswahlwerte'!$D$4*Reisekostenabrechnung!O36+Reisekostenabrechnung!P36*'AP Auswahlwerte'!$D$5),\"Auswahl fehlt\")),0))","v":""},"-",{"$f":"(IF(C36-A36=0,0,IF(C36=\"\",0,IF(R36=0,IF(X36='AP Auswahlwerte'!$A$2,VLOOKUP(F36,Tagessätze!A$4:N$229,4,FALSE),0))*Z36)))","v":0},0]
[null,null,null,null,null,"Deutschland",{"$f":"VLOOKUP(F37,Tagessätze!A$4:D$237,2,FALSE)","v":28},{"$f":"VLOOKUP(F37,Tagessätze!A$4:D$237,3,FALSE)","v":14},0,0,"",null,0,null,null,null,0,null,null,null,null,{"$f":"IF(A37=\"\",\"\",IF(Reisekostenabrechnung!$T$5=JA,\"Auswahl fehlt\",IF($T$5='AP Auswahlwerte'!$I$3,MIN(K37,(Reisekostenabrechnung!N37*0.2*Reisekostenabrechnung!$G37+Reisekostenabrechnung!O37*0.4*Reisekostenabrechnung!$G37+0.4*Reisekostenabrechnung!$G37*Reisekostenabrechnung!P37)),IF(S37='AP Auswahlwerte'!$P$2,IF(K37>0,MIN(K37,Reisekostenabrechnung!G37*(0.2*Reisekostenabrechnung!N37+0.4*Reisekostenabrechnung!O37+0.4*Reisekostenabrechnung!P37)),0),0))))","v":""},{"$f":"IF(A37=\"\",\"\",IF(K37=0,IF($T$5='AP Auswahlwerte'!$I$2,IF(S37<>\"PAUSCHAL\",0,(N37*'AP Auswahlwerte'!$D$3+'AP Auswahlwerte'!$D$4*Reisekostenabrechnung!O37+Reisekostenabrechnung!P37*'AP Auswahlwerte'!$D$5)),IF($T$5='AP Auswahlwerte'!$I$3,(N37*'AP Auswahlwerte'!$D$3+'AP Auswahlwerte'!$D$4*Reisekostenabrechnung!O37+Reisekostenabrechnung!P37*'AP Auswahlwerte'!$D$5),\"Auswahl fehlt\")),0))","v":""},{"$f":"IF(A37=C37,'AP Auswahlwerte'!$A$4,IF(R37>0,'AP Auswahlwerte'!$A$3,'AP Auswahlwerte'!$A$1))","v":"-"},{"$f":"(IF(C37-A37=0,0,IF(C37=\"\",0,IF(R37=0,IF(X37='AP Auswahlwerte'!$A$2,VLOOKUP(F37,Tagessätze!A$4:N$229,4,FALSE),0))*Z37)))","v":0},0]
["Summe",null,null,null,null,null,null,null,null,null,{"$f":"SUM(K12:K37)","v":0},null,{"$f":"SUM(M12:M37)","v":0},null,null,null,null,{"$f":"SUM(R12:R37)","v":0},0,0,0,0,0,null,{"$f":"SUM(Y12:Y37)","v":0}]
[]
["Abrechnung",null,null,null,null,null,null,null,null,null,null,null,null,null,"Auszahlung",null,null,null,null,null,null,"BITTE AUSWÄHLEN"]
["Summe",null,"Verpflegungspauschale",null,null,null,{"$f":"K38","v":0},null,null,null,null,null,null,null,"Barzahlung / aus Kasse",null,null,null,null,null,null,{"$f":"IF($V$40=O41,G51,\"\")","v":""}]
["Summe",null,"Kilometerpauschale",null,null,null,{"$f":"M38","v":0},null,null,null,null,null,null,null,"Überweisung",null,null,null,null,null,null,{"$f":"IF($V$40=O42,G51,\"\")","v":""}]
["Summe",null,"Übernachtung Hotel / Ü-Pauschale (ohne Mahlzeitanteil)",null,null,null,{"$f":"R38+Y38","v":0},null,null,null,null,null,null,null,"Lohn- / Gehaltsabrechnung",null,null,null,null,null,null,{"$f":"IF($V$40=O43,G51,\"\")","v":""}]
["Summe",null,"Mahlzeiten (Hotel)",null,null,null,{"$f":"+S38","v":0}]
["Summe",null,"sonstige Kosten (incl. sonstiger Hotelkosten) lt. gesonderter Anlage",null,null,null,{"$f":"'Sonstige Kosten'!D48+T38","v":0},null,null,null,null,null,null,null,"Ort",null,null,null,null,"Unterschrift\nMitarbeiter"]
["Summe",null,"Reisekosten",null,null,null,{"$f":"SUM(G41:G45)","v":0},null,null,null,null,null,null,null,"Datum"]
["abzgl.",null,"Kürzung Verpflegungspauschale ",null,null,null,{"$f":"IF(T5='AP Auswahlwerte'!I3,-V38,0)","v":0}]
["abzgl.",null,"Kürzung Mahlzeiten Hotel (vom AN zu tragen)",null,null,null,{"$f":"IF(T5='AP Auswahlwerte'!I2,-(S38+V38),0)","v":0},null,null,null,null,null,null,null,"Ort",null,null,null,null,"Unterschrift \nPrüfende"]
["abzgl.",null,"individuell: nicht erstattungsfähige Reisekosten \nlt. Vertrag / Vereinbarung, soweit zunächst berücksichtigt",null,null,null,0,null,null,null,null,null,null,null,"Datum"]
["abzgl.",null,"Vorschuss",null,null,null,0,null,null,null,null,null,null,null,"Ort",null,null,null,null,"Unterschrift\nArbeitgeber"]
["Erstattung / \nNachzahlung (-)",null,null,null,null,null,{"$f":"SUM(G46:G50)","v":0},null,null,null,null,null,null,null,"Datum"]
["Individuelle Versteuerung Sachbezüge beim AN",null,null,null,null,null,{"$f":"IF($T$6='AP Auswahlwerte'!$I$11,Reisekostenabrechnung!W38,0)","v":0}]
["vom Arbeitgeber zu pauschalierende Sachbezüge",null,null,null,null,null,{"$f":"IF($T$6='AP Auswahlwerte'!I12,+W38,)","v":0}]

{"sheet":"Sonstige Kosten","index":2,"n_rows":48,"n_cols":9,"rows_kept":48,"cut":false,"hidden":false,"merged":[[2,5,2,8],[0,0,0,3],[1,0,1,3],[2,0,2,3],[3,5,3,8],[0,5,1,8]]}
[{"$f":"Reisekostenabrechnung!A1","v":"Firmennamen und Anschrift eingeben"},null,null,null,null,"Achtung:"]
["Reisekostenabrechung"]
[{"$f":"Reisekostenabrechnung!A3","v":"Arbeitnehmer: Name eingeben"},null,null,null,null,"Nur von VTP"]
[null,null,null,null,null,"zu bearbeiten!"]
[null,null,null,null,null,"Betrag","VorSt-Schl.","KOST-","Konto"]
["Datum\nTT.MM.JJ","Beleg-\nnummer","Bezeichnung","Betrag",null," ","+ Konto #","Konto",0]
[null,null,null,null,null,{"$f":"D7","v":0},null,null,{"$f":"I6","v":0}]
[null,null,null,null,null,{"$f":"D8","v":0},null,null,{"$f":"I7","v":0}]
[null,null,null,null,null,0,null,null,0]
[null,null,null,null,null,0,null,null,0]
[null,null,null,null,null,0,null,null,0]
[null,null,null,null,null,0,null,null,0]
[null,null,null,null,null,0,null,null,0]
[null,null,null,null,null,0,null,null,0]
[null,null,null,null,null,0,null,null,0]
[null,null,null,null,null,0,null,null,0]
[null,null,null,null,null,0,null,null,0]
[null,null,null,null,null,0,null,null,0]
[null,null,null,null,null,0,null,null,0]
[null,null,null,null,null,0,null,null,0]
[null,null,null,null,null,0,null,null,0]
[null,null,null,null,null,0,null,null,0]
[null,null,null,null,null,0,null,null,0]
[null,null,null,null,null,0,null,null,0]
[null,null,null,null,null,0,null,null,0]
[null,null,null,null,null,0,null,null,0]
[null,null,null,null,null,0,null,null,0]
[null,null,null,null,null,0,null,null,0]
[null,null,null,null,null,0,null,null,0]
[null,null,null,null,null,0,null,null,0]
[null,null,null,null,null,0,null,null,0]
[null,null,null,null,null,0,null,null,0]
[null,null,null,null,null,0,null,null,0]
[null,null,null,null,null,0,null,null,0]
[null,null,null,null,null,0,null,null,0]
[null,null,null,null,null,0,null,null,0]
[null,null,null,null,null,0,null,null,0]
[null,null,null,null,null,0,null,null,0]
[null,null,null,null,null,0,null,null,0]
[null,null,null,null,null,0,null,null,0]
[null,null,null,null,null,0,null,null,0]
[null,null,null,null,null,0,null,null,0]
[null,null,null,null,null,0,null,null,0]
[null,null,null,null,null,0,null,null,0]
[null,null,null,null,null,0,null,null,0]
[null,null,null,null,null,0,null,null,0]
[null,null,null,null,null,0,null,null,0]
["Summe",null,null,{"$f":"SUM(D7:D47)","v":0}]

{"sheet":"Tagessätze","index":3,"n_rows":237,"n_cols":6,"rows_kept":237,"cut":false,"hidden":true,"merged":[[0,0,2,0],[0,1,0,2],[0,3,1,3]]}
["Land"," Pauschbeträge  für Verpflegungsmehraufwendungen\nbei  einer Abwesenheitsdauer je Kalendertag von",null,"Pauschbetrag  für \nÜbernachtungskosten"]
[null,"mind. 24 Stunden","weniger als 24, \naber mind. 8 Stunden"]
[null,"EUR","EUR","EUR"]
["Deutschland",28,14,20,null,"Übersicht über die ab 1. Januar 2024 geltenden Pauschbeträge für"]
["Afghanistan",30,20,95,null,"Verpflegungsmehraufwendungen und Übernachtungskosten im Ausland"]
["Ägypten",50,33,112]
["Äthiopien",39,26,130,null,"BMF 21.11.2023"]
["Äquatorialguinea",42,28,166]
["Albanien",27,18,112]
["Algerien",47,32,120]
["Andorra",41,28,91]
["Angola",52,35,299]
["Antigua und Barbuda",66,44,203,null,"Pauschale Trinidad Tobago"]
["Argentinien",35,24,113]
["Armenien",24,16,59]
["Aserbaidschan",44,29,88]
["Australien - Canberra",74,49,186]
["Australien - Sydney",57,38,173]
["Australien - im Übrigen",57,38,173]
["Bahrain",48,32,153]
["Bangladesch",50,33,165]
["Barbados",54,36,206]
["Belgien",59,40,141]
["Benin",52,35,115]
["Bolivien",46,31,108]
["Bosnien und Herzegowina",23,16,75]
["Botsuana",46,31,176]
["Brasilien - Brasilia",51,34,88]
["Brasilien - Rio de Janeiro",69,46,140]
["Brasilien - Sao Paulo",46,31,151]
["Brasilien - im Übrigen",46,31,88]
["Brunei",52,35,106]
["Bulgarien",22,15,115]
["Burkina Faso",38,25,174]
["Burundi",36,24,138]
["Chile",44,29,154]
["China - Chengdu",41,28,131]
["China - Hongkong",71,48,169]
["China - Kanton",36,24,150]
["China - Peking",30,20,185]
["China - Shanghai",58,39,217]
["China - im Übrigen",48,32,112]
["Costa Rica",47,32,93]
["Côte d’Ivoire",59,40,166]
["Dänemark",75,50,183]
["Dominica",66,44,203,null,"Pauschale Trinidad Tobago"]
["Dominikanische Republik",50,33,167]
["Dschibuti",77,52,255]
["Ecuador",27,18,103]
["El Salvador",65,44,161]
["Eritrea",50,33,91]
["Estland",29,20,85]
["Fidschi",32,21,183]
["Finnland",54,36,171]
["Frankreich – Paris sowie Departem. 77, 78, 91 bis 95",58,39,159]
["Frankreich – im Übrigen",53,36,105]
["Gabun",52,35,183]
["Gambia",40,27,161]
["Georgien",45,30,87]
["Ghana",46,31,148]
["Grenada",66,44,203,null,"Pauschale Trinidad Tobago"]
["Grenadinen",66,44,203,null,"Pauschale Trinidad Tobago"]
["Griechenland – Athen",40,27,139]
["Griechenland – im Übrigen",36,24,150]
["Guatemala",34,23,90]
["Guinea",59,40,140]
["Guinea-Bissau",32,21,113]
["Guyana",66,44,203,null,"Pauschale Trinidad Tobago"]
["Haiti",58,39,130]
["Honduras",57,38,198]
["Indien - Chennai",32,21,85]
["Indien - Kalkutta",35,24,145]
["Indien - Mumbai",50,33,146]
["Indien - Neu Delhi",38,25,185]
["Indien- im Übrigen",32,21,85]
["Indonesien",36,24,134]
["Iran",33,22,196]
["Irland",58,39,129]
["Island",62,41,187]
["Israel",66,44,190]
["Italien - Mailand",42,28,191]
["Italien - Rom",48,32,150]
["Italien - im Übrigen",42,28,150]
["Jamaika",39,26,171]
["Japan - Tokio",50,33,285]
["Japan - im Übrigen",52,35,190]
["Jemen",24,16,95]
["Jordanien",57,38,134]
["Kambodscha",38,25,94]
["Kamerun",56,37,275]
["Kanada - Ottawa",62,41,214]
["Kanada - Toronto",54,36,392]
["Kanada - Vancouver",63,42,304]
["Kanada - im Übrigen",54,36,214]
["Kap Verde",38,25,90]
["Kasachstan",45,30,111]
["Katar",56,37,149]
["Kenia",51,34,219]
["Kirgisistan",27,18,74]
["Kolumbien",46,31,115]
["Kongo, Republik",62,41,215]
["Kongo, Demokratische Republik",70,47,190]
["Korea, Demokratische Volksrepublik",28,19,92]
["Korea, Republik",48,32,108]
["Kosovo",24,16,71]
["Kroatien",35,24,107]
["Kuba",51,34,170]
["Kuwait",56,37,241]
["Laos",35,24,71]
["Lesotho",28,19,104]
["Lettland",35,24,76]
["Libanon",69,46,146]
["Libyen",63,42,135]
["Liechtenstein",56,37,190]
["Litauen",26,17,109]
["Luxemburg",63,42,139]
["Madagaskar",33,22,116]
["Malawi",41,28,109]
["Malaysia",36,24,86]
["Malediven",52,35,170]
["Mali",38,25,120]
["Malta",46,31,114]
["Marokko",41,28,172]
["Marshall Inseln",63,42,102]
["Mauretanien",35,24,86]
["Mauritius",44,29,172]
["Mexiko",48,32,177]
["Mikronesien",41,28,140,null,"Pauschale Philippinen"]
["Moldau, Republik",26,17,73]
["Monaco",52,35,187]
["Mongolei",23,16,92]
["Montenegro",32,21,85]
["Mosambik",51,34,208]
["Myanmar",35,24,155]
["Namibia",30,20,112]
["Nepal",36,24,126]
["Neuseeland",58,39,148]
["Nicaragua",46,31,105]
["Niederlande",47,32,122]
["Niger",42,28,131]
["Nigeria",46,31,182]
["Nordmazedonien",27,18,89]
["Norwegen",75,50,139]
["Österreich",50,33,117]
["Oman",64,43,141]
["Pakistan - Islamabad",23,16,238]
["Pakistan - im Übrigen",34,23,122]
["Palau",51,34,179]
["Panama",41,28,82]
["Papua-Neuguinea",59,40,159]
["Paraguay",39,26,124]
["Peru",34,23,143]
["Philippinen",41,28,140]
["Polen – Breslau",33,22,117]
["Polen – Danzig",30,20,84]
["Polen – Krakau",27,18,86]
["Polen – Warschau",29,20,109]
["Polen – im Übrigen",29,20,60]
["Portugal",32,21,111]
["Ruanda",44,29,117]
["Rumänien – Bukarest",32,21,92]
["Rumänien – im Übrigen",27,18,89]
["Russische Föderation - Jekatarinenburg",28,19,84]
["Russische Föderation - Moskau ",30,20,110]
["Russische Föderation - St. Petersburg",26,17,114]
["Russische Föderation - im Übrigen",24,16,58]
["Sambia",38,25,105]
["Samoa",39,26,105]
["San Marino",34,23,79]
["São Tomé – Príncipe",47,32,80]
["Saudi-Arabien - Djidda",57,38,181]
["Saudi-Arabien - Riad",56,37,186]
["Saudi-Arabien - im Übrigen",56,37,181]
["Schweden",66,44,140]
["Schweiz - Genf",66,44,186]
["Schweiz - im Übrigen",64,43,180]
["Senegal",42,28,190]
["Serbien",27,18,97]
["Sierra Leone",57,38,145]
["Simbabwe",45,30,140]
["Singapur",54,36,197]
["Slowakische Republik",33,22,121]
["Slowenien",38,25,126]
["Spanien - Barcelona",34,23,144]
["Spanien - Kanarische Inseln",36,24,103]
["Spanien – Madrid",42,28,131]
["Spanien - Palma de Mallorca",44,29,142]
["Spanien - im Übrigen",34,23,103]
["Sri Lanka",36,24,112]
["St. Kitts und Nevis",66,44,203,null,"Pauschale Trinidad Tobago"]
["St. Lucia",66,44,203,null,"Pauschale Trinidad Tobago"]
["St. Vincent und die Grenadinen",66,44,203,null,"Pauschale Trinidad Tobago"]
["Sudan",33,22,195]
["Südafrika - Kapstadt",33,22,130]
["Südafrika - Johannisburg",36,24,129]
["Südafrika - im Übrigen",29,20,109]
["Südsudan",51,34,159]
["Suriname",66,44,203,null,"Pauschale Trinidad Tobago"]
["Syrien",38,25,140]
["Tadschikistan",27,18,118]
["Taiwan",46,31,143]
["Tansania",44,29,97]
["Thailand",38,25,110]
["Togo",39,26,118]
["Tonga",39,26,94]
["Trinidad und Tobago",66,44,203]
["Tschad",42,28,155]
["Tschechische Republik",32,21,77]
["Türkei - Istanbul",26,17,120]
["Türkei - Izmir",29,20,55]
["Türkei - im Übrigen",17,12,95]
["Tunesien",40,27,144]
["Turkmenistan",33,22,108]
["Uganda",41,28,143]
["Ukraine",26,17,98]
["Ungarn",32,21,85]
["Uruguay",48,32,90]
["Usbekistan",34,23,104]
["Vatikanstaat",48,32,150]
["Venezuela",45,30,127]
["Vereinigte Arabische Emirate",65,44,156]
["Vereinigte Staaten von Amerika - Atlanta",77,52,182]
["Vereinigte Staaten von Amerika - Boston",63,42,333]
["Vereinigte Staaten von Amerika - Chicago",65,44,233]
["Vereinigte Staaten von Amerika - Houston",62,41,204]
["Vereinigte Staaten von Amerika - Los Angeles",64,43,262]
["Vereinigte Staaten von Amerika - Miami",65,44,256]
["Vereinigte Staaten von Amerika - New York Stadt",66,44,308]
["Vereinigte Staaten von Amerika - San Francisco",59,40,327]
["Vereinigte Staaten von Amerika - Washington",66,44,203]
["Vereinigte Staaten von Amerika - im Übrigen",59,40,182]
["Vereinigtes Königreich von Großbritannien und Nordirland - London",66,44,163]
["Vereinigtes Königreich von Großbritannien und Nordirland - im Übrigen",52,35,99]
["Vietnam",41,28,86]
["Weißrussland",20,13,98]
["Zentralafrikanische Republik",53,36,210]
["Zypern",42,28,125]

{"sheet":"AP Auswahlwerte","index":4,"n_rows":13,"n_cols":18,"rows_kept":13,"cut":false,"hidden":true,"merged":[]}
["BITTE AUSWÄHLEN",null,"Sachbezugswerte 2014 (voraussichtlich)",null,"pauschale Kürzung Pauschale 24h",null,null,null,"BITTE AUSWÄHLEN",null,null,null,null,null,null,"OHNE Verpfleg.",null,"BITTE AUSWÄHLEN"]
["JA",null,null,null,"wenn fehlender Ausweis in Rechnung",null,null,null,"Arbeitnehmer werden tatsächliche Verpflegungskosten erstattet; bei Pauschalen erfolgt Kürzung 20%/40%/40% des VMA.",null,null,null,null,null,null,"PAUSCHAL",null,"Barzahlung / aus Kasse"]
["NEIN",null,"FRÜHSTÜCK",1.63,0.2,null,null,null,"Zahlung der steuerfreien Pauschale (mit prozentualer Kürzung für Mahlzeiten) ",null,null,null,null,null,null,"Betrag?",null,"Überweisung"]
["-",null,"MITTAGESSEN",3,0.4,null,null,null,null,null,null,null,null,null,null,null,null,"Lohn- / Gehaltsabrechnung"]
[null,null,"ABENDESSEN",3,0.4]
[]
["Übernachtungspauschale"]
[0,"Nein"]
[1,"JA",null,null,null,null,null,null,"BITTE AUSWÄHLEN"]
[null,null,null,null,null,null,null,null,"Entfällt (mangels Kosten, Erstattung oder steuerpfl. Mahlzeiten)"]
["Fahrzeug",null,null,null,null,null,null,null,"Individuelle Versteuerung des Sachbezugswertes durch AN"]
["Kfz",0.3,null,null,null,null,null,null,"Pauschale Versteuerung des Sachbezugswertes durch AG"]
["sonst.Motorisierung",0.2]

{"sheet":"Sonstige Kosten - Auswahl","index":5,"n_rows":17,"n_cols":1,"rows_kept":17,"cut":false,"hidden":true,"merged":[]}
["Parken"]
["Tanken"]
["Taxi"]
["Bewirtung Arbeitnehmer"]
["Bewirtung Geschäftsfreunde"]
["Bürobedarf"]
["EDV-Bedarf"]
["Geschenke bis 35 Euro"]
["Geschenke über 35 Euro"]
["Kfz-Reparatur"]
["Mautgebühren"]
["Porto"]
["Sonstige laufende Kfz-Kosten"]
["Sonstiges"]
[]
[]
["ausblenden"]